[Event "*** Titled Tuesday Blitz"]
[Site "Chess.com"]
[Date "2020.02.04"]
[Round "2"]
[White "GianmarcoVaR"]
[Black "Shield12"]
[Result "1-0"]
[WhiteElo "2622"]
[BlackElo "2881"]
[TimeControl "180+2"]
[EndTime "9:24:32 PST"]
[Termination "GianmarcoVaR won by resignation"]

1. d4 {[%clk 0:03:01.9]} 1... d5 {[%clk 0:02:58.7]} 2. c4 {[%clk 0:03:02.2]}
2... e6 {[%clk 0:02:59.8]} 3. Nf3 {[%clk 0:02:59]} 3... c6 {[%clk 0:02:59.6]} 4.
Qc2 {[%clk 0:02:58.5]} 4... Nf6 {[%clk 0:02:58.2]} 5. g3 {[%clk 0:02:59.4]} 5...
Nbd7 {[%clk 0:02:55.1]} 6. Bg2 {[%clk 0:03:00.6]} 6... Bd6 {[%clk 0:02:55.2]} 7.
O-O {[%clk 0:02:57.4]} 7... O-O {[%clk 0:02:56]} 8. b3 {[%clk 0:02:42.4]} 8...
b6 {[%clk 0:02:55.4]} 9. Bb2 {[%clk 0:02:42.3]} 9... Bb7 {[%clk 0:02:55.9]} 10.
Nbd2 {[%clk 0:02:43.1]} 10... Qe7 {[%clk 0:02:49]} 11. e4 {[%clk 0:02:41.5]}
11... dxe4 {[%clk 0:02:48.8]} 12. Nxe4 {[%clk 0:02:42.5]} 12... Nxe4 {[%clk
0:02:50.7]} 13. Qxe4 {[%clk 0:02:43.4]} 13... Nf6 {[%clk 0:02:51]} 14. Qe2
{[%clk 0:02:29.5]} 14... c5 {[%clk 0:02:51.2]} 15. Rad1 {[%clk 0:02:28]} 15...
Rad8 {[%clk 0:02:50.3]} 16. Rfe1 {[%clk 0:02:25.6]} 16... cxd4 {[%clk
0:02:48.8]} 17. Nxd4 {[%clk 0:02:23.7]} 17... Bxg2 {[%clk 0:02:49.2]} 18. Kxg2
{[%clk 0:02:24.9]} 18... Bb4 {[%clk 0:02:23.2]} 19. Nc6 {[%clk 0:01:53]} 19...
Qb7 {[%clk 0:02:15.6]} 20. Qf3 {[%clk 0:01:54]} 20... Rxd1 {[%clk 0:01:42]} 21.
Rxd1 {[%clk 0:01:54]} 21... Be7 {[%clk 0:01:43.1]} 22. Nxe7+ {[%clk 0:01:23.1]}
22... Qxe7 {[%clk 0:01:45]} 23. Bxf6 {[%clk 0:01:20.9]} 23... gxf6 {[%clk
0:01:42.8]} 24. Qg4+ {[%clk 0:01:16.5]} 24... Kh8 {[%clk 0:01:43.4]} 25. Qd4
{[%clk 0:01:18.4]} 25... Rc8 {[%clk 0:01:19.3]} 26. Qd7 {[%clk 0:01:08]} 26...
Rc7 {[%clk 0:01:20.2]} 27. Qxe7 {[%clk 0:01:07.3]} 27... Rxe7 {[%clk 0:01:22.1]}
28. Kf3 {[%clk 0:01:00.8]} 28... f5 {[%clk 0:01:22.6]} 29. Kf4 {[%clk
0:00:59.4]} 29... f6 {[%clk 0:01:21.7]} 30. b4 {[%clk 0:00:28.1]} 30... Rc7
{[%clk 0:01:17.6]} 31. Rc1 {[%clk 0:00:27.7]} 31... Kg7 {[%clk 0:01:16]} 32. c5
{[%clk 0:00:26.1]} 32... bxc5 {[%clk 0:01:10.1]} 33. Rxc5 {[%clk 0:00:22.2]}
33... Rxc5 {[%clk 0:01:02]} 34. bxc5 {[%clk 0:00:22.9]} 34... Kf7 {[%clk
0:01:03.9]} 35. Ke3 {[%clk 0:00:21.4]} 35... Ke7 {[%clk 0:00:50.3]} 36. Kd4
{[%clk 0:00:22.8]} 36... Kd7 {[%clk 0:00:51.3]} 37. Kc4 {[%clk 0:00:24.4]} 37...
Kc6 {[%clk 0:00:51.3]} 38. Kb4 {[%clk 0:00:06.4]} 38... e5 {[%clk 0:00:45.3]}
39. a4 {[%clk 0:00:04.7]} 39... h5 {[%clk 0:00:31.9]} 40. h4 {[%clk 0:00:03.1]}
40... a6 {[%clk 0:00:16.2]} 41. Ka5 {[%clk 0:00:04.5]} 41... Kxc5 {[%clk
0:00:12.8]} 42. Kxa6 {[%clk 0:00:05.4]} 42... Kc6 {[%clk 0:00:14]} 43. Ka5
{[%clk 0:00:05.4]} 43... Kc5 {[%clk 0:00:14.9]} 44. Ka6 {[%clk 0:00:06.9]} 44...
Kc6 {[%clk 0:00:16.2]} 45. a5 {[%clk 0:00:07.3]} 45... f4 {[%clk 0:00:14.8]} 46.
gxf4 {[%clk 0:00:07.8]} 46... exf4 {[%clk 0:00:15.9]} 47. f3 {[%clk 0:00:08.3]}
47... f5 {[%clk 0:00:17]} 48. Ka7 {[%clk 0:00:09.4]} 48... Kc7 {[%clk
0:00:18.5]} 49. a6 {[%clk 0:00:10.8]} 49... Kc8 {[%clk 0:00:17.7]} 50. Kb6
{[%clk 0:00:12.3]} 50... Kb8 {[%clk 0:00:19.1]} 51. Kc5 {[%clk 0:00:13.4]} 51...
Ka7 {[%clk 0:00:20.6]} 52. Kd5 {[%clk 0:00:15]} 52... Kxa6 {[%clk 0:00:22.1]}
53. Ke5 {[%clk 0:00:16.6]} 53... Kb6 {[%clk 0:00:23.3]} 54. Kxf5 {[%clk
0:00:18.1]} 1-0

[Event "*** Titled Tuesday Blitz"]
[Site "Chess.com"]
[Date "2020.02.04"]
[Round "2"]
[White "Quiet_Desperation"]
[Black "vlad_Sid"]
[Result "1-0"]
[WhiteElo "2443"]
[BlackElo "2693"]
[TimeControl "180+2"]
[EndTime "9:24:34 PST"]
[Termination "Quiet_Desperation won by resignation"]

1. e4 {[%clk 0:03:01.9]} 1... c6 {[%clk 0:03:01.2]} 2. d4 {[%clk 0:03:01.8]}
2... d5 {[%clk 0:03:02.5]} 3. e5 {[%clk 0:03:02.6]} 3... Bf5 {[%clk 0:03:01]} 4.
h4 {[%clk 0:03:02.6]} 4... h5 {[%clk 0:03:01.1]} 5. Bd3 {[%clk 0:02:46.3]} 5...
Bxd3 {[%clk 0:03:00.9]} 6. Qxd3 {[%clk 0:02:46.9]} 6... e6 {[%clk 0:03:02.8]} 7.
Nf3 {[%clk 0:02:45.9]} 7... Qa5+ {[%clk 0:03:03.6]} 8. c3 {[%clk 0:02:45.3]}
8... Qa6 {[%clk 0:03:05.5]} 9. Qxa6 {[%clk 0:02:36.6]} 9... Nxa6 {[%clk
0:03:07.4]} 10. b3 {[%clk 0:02:32.4]} 10... Ne7 {[%clk 0:03:06.8]} 11. Ba3
{[%clk 0:02:30.8]} 11... Nf5 {[%clk 0:03:07.7]} 12. Bxf8 {[%clk 0:02:30.8]}
12... Kxf8 {[%clk 0:03:09]} 13. Nbd2 {[%clk 0:02:29.9]} 13... Ke7 {[%clk
0:03:09.3]} 14. Ke2 {[%clk 0:02:30.3]} 14... Rac8 {[%clk 0:03:08.7]} 15. Rac1
{[%clk 0:02:29.7]} 15... Rc7 {[%clk 0:03:08.4]} 16. b4 {[%clk 0:02:28.9]} 16...
b6 {[%clk 0:03:07.8]} 17. a4 {[%clk 0:02:27.5]} 17... c5 {[%clk 0:02:46.9]} 18.
b5 {[%clk 0:02:26.8]} 18... Nb8 {[%clk 0:02:47.4]} 19. Nb3 {[%clk 0:02:02.2]}
19... Nd7 {[%clk 0:02:44.6]} 20. g3 {[%clk 0:01:58.3]} 20... Rhc8 {[%clk
0:02:41.8]} 21. Rhd1 {[%clk 0:01:37.3]} 21... a5 {[%clk 0:02:11.1]} 22. Kd2
{[%clk 0:00:58.3]} 22... f6 {[%clk 0:01:41.5]} 23. Re1 {[%clk 0:00:57.3]} 23...
fxe5 {[%clk 0:01:41]} 24. dxe5 {[%clk 0:00:34.6]} 24... c4 {[%clk 0:01:28.9]}
25. Nbd4 {[%clk 0:00:32.8]} 25... Nxd4 {[%clk 0:01:25.2]} 26. cxd4 {[%clk
0:00:28.8]} 26... c3+ {[%clk 0:00:36.4]} 27. Kd3 {[%clk 0:00:29]} 27... Rc4
{[%clk 0:00:30.4]} 28. Ra1 {[%clk 0:00:29.3]} 28... c2 {[%clk 0:00:30]} 29. Rec1
{[%clk 0:00:25.7]} 29... Rb4 {[%clk 0:00:25.8]} 30. Ra3 {[%clk 0:00:18.3]} 30...
Rcc4 {[%clk 0:00:23.1]} 31. Rxc2 {[%clk 0:00:18]} 31... Rxa4 {[%clk 0:00:24.2]}
32. Rxa4 {[%clk 0:00:16.2]} 32... Rxa4 {[%clk 0:00:26.1]} 33. Rc8 {[%clk
0:00:16.2]} 33... Ra3+ {[%clk 0:00:21.2]} 34. Ke2 {[%clk 0:00:16.7]} 34... Rb3
{[%clk 0:00:21]} 35. Ng5 {[%clk 0:00:16.6]} 35... Rxb5 {[%clk 0:00:19.4]} 36.
Rc6 {[%clk 0:00:16.9]} 36... Nf8 {[%clk 0:00:20.3]} 37. Rc7+ {[%clk 0:00:17.7]}
37... Nd7 {[%clk 0:00:18.1]} 38. Rc6 {[%clk 0:00:18.4]} 38... Nf8 {[%clk
0:00:18.8]} 39. Rc7+ {[%clk 0:00:19.3]} 39... Kd8 {[%clk 0:00:13.8]} 40. Rxg7
{[%clk 0:00:16.8]} 40... Rb2+ {[%clk 0:00:12.7]} 41. Kf3 {[%clk 0:00:16.5]}
41... Rc2 {[%clk 0:00:09.6]} 42. Rf7 {[%clk 0:00:16.9]} 42... Ke8 {[%clk
0:00:07.8]} 43. Rb7 {[%clk 0:00:17.4]} 43... Rc3+ {[%clk 0:00:08.3]} 44. Ke2
{[%clk 0:00:17.1]} 44... Rc6 {[%clk 0:00:09.7]} 45. Nf7 {[%clk 0:00:16.5]} 45...
Nd7 {[%clk 0:00:09.7]} 46. Nd6+ {[%clk 0:00:16.6]} 46... Kd8 {[%clk 0:00:11.1]}
47. Ra7 {[%clk 0:00:16.9]} 47... Ke7 {[%clk 0:00:06.9]} 48. Ra8 {[%clk
0:00:15.7]} 48... Nf6 {[%clk 0:00:02.8]} 49. Nc8+ {[%clk 0:00:12]} 49... Rxc8
{[%clk 0:00:02.1]} 50. exf6+ {[%clk 0:00:11.9]} 50... Kd7 {[%clk 0:00:02.5]} 51.
Rxc8 {[%clk 0:00:13.8]} 51... Kxc8 {[%clk 0:00:04.4]} 52. f7 {[%clk 0:00:15.1]}
52... Kd7 {[%clk 0:00:06.3]} 53. f8=Q {[%clk 0:00:16.2]} 53... Kc6 {[%clk
0:00:08.2]} 54. Qa3 {[%clk 0:00:17]} 54... Kb5 {[%clk 0:00:10.1]} 55. Kd3 {[%clk
0:00:18.1]} 55... Kc6 {[%clk 0:00:11.2]} 56. Kc3 {[%clk 0:00:19.3]} 56... Kb7
{[%clk 0:00:12.6]} 1-0

[Event "*** Titled Tuesday Blitz"]
[Site "Chess.com"]
[Date "2020.02.04"]
[Round "2"]
[White "victormago"]
[Black "Gordima"]
[Result "1-0"]
[WhiteElo "2415"]
[BlackElo "2780"]
[TimeControl "180+2"]
[EndTime "9:24:34 PST"]
[Termination "victormago won by resignation"]

1. d4 {[%clk 0:03:01.9]} 1... Nf6 {[%clk 0:03:00.3]} 2. c4 {[%clk 0:03:02.6]}
2... e6 {[%clk 0:03:01.5]} 3. Nc3 {[%clk 0:03:03.2]} 3... Bb4 {[%clk 0:03:02.7]}
4. Qc2 {[%clk 0:03:04]} 4... c5 {[%clk 0:02:53]} 5. dxc5 {[%clk 0:03:03.1]} 5...
O-O {[%clk 0:02:53.9]} 6. Nf3 {[%clk 0:03:04.2]} 6... Bxc5 {[%clk 0:02:54]} 7.
e3 {[%clk 0:03:04]} 7... b6 {[%clk 0:02:54.5]} 8. Be2 {[%clk 0:03:04.6]} 8...
Bb7 {[%clk 0:02:55.8]} 9. O-O {[%clk 0:03:05.8]} 9... Be7 {[%clk 0:02:56.1]} 10.
b3 {[%clk 0:03:05.5]} 10... d6 {[%clk 0:02:56.7]} 11. Bb2 {[%clk 0:03:06.5]}
11... Nbd7 {[%clk 0:02:57.4]} 12. Rfd1 {[%clk 0:03:07.3]} 12... a6 {[%clk
0:02:58.2]} 13. Rac1 {[%clk 0:03:07.8]} 13... Qc7 {[%clk 0:02:58.5]} 14. Qb1
{[%clk 0:03:08.7]} 14... Rac8 {[%clk 0:02:56]} 15. h3 {[%clk 0:03:09.8]} 15...
Qb8 {[%clk 0:02:57.1]} 16. Ng5 {[%clk 0:02:58.7]} 16... Ne5 {[%clk 0:02:16.9]}
17. Nce4 {[%clk 0:02:41.2]} 17... Nxe4 {[%clk 0:02:13.1]} 18. Nxe4 {[%clk
0:02:40.3]} 18... Rfd8 {[%clk 0:02:12.2]} 19. Ng3 {[%clk 0:02:06.2]} 19... Qa8
{[%clk 0:02:06.1]} 20. Bf1 {[%clk 0:02:07]} 20... Bf8 {[%clk 0:02:04]} 21. Rd4
{[%clk 0:01:53.3]} 21... g6 {[%clk 0:02:01.8]} 22. Rcd1 {[%clk 0:01:52.4]} 22...
Qb8 {[%clk 0:01:56.5]} 23. Ne4 {[%clk 0:01:48.8]} 23... Bxe4 {[%clk 0:01:28.5]}
24. Qxe4 {[%clk 0:01:48]} 24... Bg7 {[%clk 0:01:23.2]} 25. R4d2 {[%clk
0:01:35.1]} 25... Nc6 {[%clk 0:01:21.7]} 26. Bxg7 {[%clk 0:01:34.7]} 26... Kxg7
{[%clk 0:01:23.6]} 27. g3 {[%clk 0:01:31.1]} 27... Qc7 {[%clk 0:01:09.3]} 28.
Bg2 {[%clk 0:01:30.9]} 28... Qe7 {[%clk 0:01:10.8]} 29. Qb1 {[%clk 0:01:21.8]}
29... Ne5 {[%clk 0:00:54.8]} 30. f4 {[%clk 0:01:20.3]} 30... Nc6 {[%clk
0:00:52.5]} 31. Bxc6 {[%clk 0:01:20.5]} 31... Rxc6 {[%clk 0:00:54.4]} 32. Rd3
{[%clk 0:01:20.5]} 32... b5 {[%clk 0:00:52.9]} 33. cxb5 {[%clk 0:01:21]} 33...
axb5 {[%clk 0:00:54.1]} 34. R1d2 {[%clk 0:01:19.9]} 34... Rdc8 {[%clk
0:00:54.6]} 35. Qb2+ {[%clk 0:01:20.7]} 35... e5 {[%clk 0:00:53.3]} 36. Kg2
{[%clk 0:01:19]} 36... b4 {[%clk 0:00:48.7]} 37. Kf2 {[%clk 0:01:08.9]} 37... h5
{[%clk 0:00:38.6]} 38. h4 {[%clk 0:01:09.8]} 38... Qe6 {[%clk 0:00:38.1]} 39.
Kg2 {[%clk 0:01:03.8]} 39... Qf5 {[%clk 0:00:31.4]} 40. Kh2 {[%clk 0:00:57.4]}
40... Kh7 {[%clk 0:00:31.2]} 41. fxe5 {[%clk 0:00:54.1]} 41... dxe5 {[%clk
0:00:28.8]} 42. Rd5 {[%clk 0:00:46.6]} 42... Rc3 {[%clk 0:00:26.8]} 43. Rf2
{[%clk 0:00:46.6]} 43... Qe6 {[%clk 0:00:27]} 44. e4 {[%clk 0:00:45.5]} 44...
R8c7 {[%clk 0:00:20.2]} 45. Qe2 {[%clk 0:00:44.9]} 45... Kg7 {[%clk 0:00:17.9]}
46. Kg2 {[%clk 0:00:41.1]} 46... Ra7 {[%clk 0:00:12.7]} 47. Rd3 {[%clk
0:00:32.2]} 47... Rac7 {[%clk 0:00:09.6]} 48. Rd5 {[%clk 0:00:32.3]} 48... Rc1
{[%clk 0:00:08.2]} 49. Qd2 {[%clk 0:00:28.4]} 49... Ra1 {[%clk 0:00:05.7]} 50.
Rd6 {[%clk 0:00:18]} 50... Qe7 {[%clk 0:00:04]} 51. Rdf6 {[%clk 0:00:14.6]}
51... Rd7 {[%clk 0:00:02.7]} 52. Qg5 {[%clk 0:00:07.6]} 52... Rc7 {[%clk
0:00:02.9]} 53. Rxf7+ {[%clk 0:00:07.7]} 53... Qxf7 {[%clk 0:00:03.5]} 54. Qxe5+
{[%clk 0:00:07.7]} 54... Kg8 {[%clk 0:00:02.8]} 55. Rxf7 {[%clk 0:00:08.6]} 1-0

[Event "*** Titled Tuesday Blitz"]
[Site "Chess.com"]
[Date "2020.02.04"]
[Round "2"]
[White "Andro2"]
[Black "HarryCun"]
[Result "0-1"]
[WhiteElo "2416"]
[BlackElo "2122"]
[TimeControl "180+2"]
[EndTime "9:24:40 PST"]
[Termination "HarryCun won by resignation"]

1. e4 {[%clk 0:03:01.9]} 1... c6 {[%clk 0:03:00.5]} 2. d4 {[%clk 0:03:02]} 2...
d5 {[%clk 0:03:00.8]} 3. Nd2 {[%clk 0:03:03.3]} 3... dxe4 {[%clk 0:02:52.7]} 4.
Nxe4 {[%clk 0:03:03.6]} 4... Bf5 {[%clk 0:02:54.6]} 5. Ng3 {[%clk 0:03:04.3]}
5... Bg6 {[%clk 0:02:55.7]} 6. Nh3 {[%clk 0:03:05.9]} 6... h6 {[%clk 0:02:56]}
7. Nf4 {[%clk 0:03:05.2]} 7... Bh7 {[%clk 0:02:56.8]} 8. c3 {[%clk 0:03:06.3]}
8... Nf6 {[%clk 0:02:57.7]} 9. Bc4 {[%clk 0:03:03.3]} 9... e6 {[%clk 0:02:58.5]}
10. O-O {[%clk 0:03:01.8]} 10... Nbd7 {[%clk 0:02:59.3]} 11. Bxe6 {[%clk
0:02:55.2]} 11... fxe6 {[%clk 0:02:59.6]} 12. Nxe6 {[%clk 0:02:55.6]} 12... Qa5
{[%clk 0:02:54.1]} 13. Re1 {[%clk 0:02:55.3]} 13... Be7 {[%clk 0:02:52.6]} 14.
b4 {[%clk 0:02:42.9]} 14... Qb6 {[%clk 0:02:47.5]} 15. Nxg7+ {[%clk 0:02:43.3]}
15... Kf7 {[%clk 0:02:44.2]} 16. N7f5 {[%clk 0:02:44.1]} 16... Bxf5 {[%clk
0:02:42.2]} 17. Nxf5 {[%clk 0:02:44.5]} 17... Bd8 {[%clk 0:02:41.2]} 18. Nxh6+
{[%clk 0:02:35.6]} 18... Kf8 {[%clk 0:02:38.9]} 19. Nf5 {[%clk 0:02:31.8]} 19...
Bc7 {[%clk 0:02:09]} 20. h3 {[%clk 0:02:27]} 20... Re8 {[%clk 0:02:08.7]} 21.
Bh6+ {[%clk 0:02:15.4]} 21... Kf7 {[%clk 0:01:54]} 22. Qf3 {[%clk 0:02:13.3]}
22... Qb5 {[%clk 0:01:38.9]} 23. Bg5 {[%clk 0:01:16.1]} 23... Qd5 {[%clk
0:01:23.5]} 24. Qxd5+ {[%clk 0:01:16.3]} 24... Nxd5 {[%clk 0:01:24.9]} 25. Bd2
{[%clk 0:01:17.3]} 25... N7f6 {[%clk 0:01:22.7]} 26. Rxe8 {[%clk 0:00:47.4]}
26... Rxe8 {[%clk 0:01:21.6]} 27. Re1 {[%clk 0:00:49]} 27... Ne4 {[%clk
0:01:19.7]} 28. Nh6+ {[%clk 0:00:40.9]} 28... Kf8 {[%clk 0:01:17.5]} 29. Bc1
{[%clk 0:00:22.9]} 29... Nexc3 {[%clk 0:01:16.1]} 30. Rxe8+ {[%clk 0:00:23]}
30... Kxe8 {[%clk 0:01:16.9]} 31. Kf1 {[%clk 0:00:22.3]} 31... Nxb4 {[%clk
0:01:17.6]} 32. a3 {[%clk 0:00:21.4]} 32... Nc2 {[%clk 0:01:12.7]} 33. Nf5
{[%clk 0:00:20.1]} 33... Bb6 {[%clk 0:01:09.6]} 34. Be3 {[%clk 0:00:19.5]} 34...
Nxa3 {[%clk 0:01:08.4]} 35. g4 {[%clk 0:00:19.7]} 35... Nc4 {[%clk 0:01:08.5]}
36. h4 {[%clk 0:00:20.7]} 36... Nxe3+ {[%clk 0:01:09.3]} 37. fxe3 {[%clk
0:00:22.1]} 37... a5 {[%clk 0:01:07.7]} 38. h5 {[%clk 0:00:22.9]} 38... Ne4
{[%clk 0:00:34.9]} 39. h6 {[%clk 0:00:21.3]} 39... Ng5 {[%clk 0:00:35.3]} 40.
Ke2 {[%clk 0:00:19]} 40... Kf7 {[%clk 0:00:20.4]} 41. Kd3 {[%clk 0:00:19.4]}
41... Ke6 {[%clk 0:00:19.4]} 42. e4 {[%clk 0:00:18.2]} 42... Bc7 {[%clk
0:00:18]} 43. Ng7+ {[%clk 0:00:17.2]} 43... Kf7 {[%clk 0:00:17.9]} 44. Nf5
{[%clk 0:00:18]} 44... b5 {[%clk 0:00:17.7]} 45. e5 {[%clk 0:00:16.9]} 45... c5
{[%clk 0:00:17.1]} 46. dxc5 {[%clk 0:00:16.2]} 46... Bxe5 {[%clk 0:00:17.9]} 47.
c6 {[%clk 0:00:16]} 47... a4 {[%clk 0:00:18.9]} 48. Kc2 {[%clk 0:00:16.7]} 48...
b4 {[%clk 0:00:20]} 49. Ne3 {[%clk 0:00:17.4]} 49... b3+ {[%clk 0:00:20.7]} 50.
Kc1 {[%clk 0:00:14]} 50... a3 {[%clk 0:00:21.2]} 51. Nc4 {[%clk 0:00:15.6]}
51... Bf4+ {[%clk 0:00:12.7]} 52. Kb1 {[%clk 0:00:13.9]} 52... a2+ {[%clk
0:00:07.5]} 53. Kb2 {[%clk 0:00:15.1]} 53... Ne4 {[%clk 0:00:06.8]} 54. h7
{[%clk 0:00:15.1]} 54... Kg7 {[%clk 0:00:07.7]} 55. Na3 {[%clk 0:00:12.4]} 55...
Be5+ {[%clk 0:00:07.9]} 56. Kxb3 {[%clk 0:00:13.6]} 56... a1=Q {[%clk
0:00:09.3]} 57. Nc4 {[%clk 0:00:14]} 57... Qc3+ {[%clk 0:00:09.4]} 0-1

[Event "*** Titled Tuesday Blitz"]
[Site "Chess.com"]
[Date "2020.02.04"]
[Round "2"]
[White "Kimster98"]
[Black "OhanyanEminChess"]
[Result "1/2-1/2"]
[WhiteElo "2702"]
[BlackElo "2460"]
[TimeControl "180+2"]
[EndTime "9:24:59 PST"]
[Termination "Game drawn by repetition"]

1. d4 {[%clk 0:03:01.9]} 1... Nf6 {[%clk 0:03:00.4]} 2. c4 {[%clk 0:03:02.2]}
2... e5 {[%clk 0:03:01.3]} 3. dxe5 {[%clk 0:03:02.6]} 3... Ng4 {[%clk
0:03:02.7]} 4. Bf4 {[%clk 0:02:57.7]} 4... Nc6 {[%clk 0:03:03.8]} 5. Nf3 {[%clk
0:02:57.5]} 5... Bb4+ {[%clk 0:03:05.2]} 6. Nbd2 {[%clk 0:02:58.2]} 6... Qe7
{[%clk 0:03:06.7]} 7. e3 {[%clk 0:02:59.2]} 7... Ngxe5 {[%clk 0:03:07.9]} 8.
Nxe5 {[%clk 0:03:00.5]} 8... Nxe5 {[%clk 0:03:09.8]} 9. Be2 {[%clk 0:03:02]}
9... d6 {[%clk 0:03:11.4]} 10. O-O {[%clk 0:03:02.1]} 10... Bxd2 {[%clk
0:03:13]} 11. Qxd2 {[%clk 0:03:04]} 11... O-O {[%clk 0:03:14.6]} 12. Rac1 {[%clk
0:02:54.2]} 12... b6 {[%clk 0:03:05.6]} 13. b4 {[%clk 0:02:20]} 13... Bb7 {[%clk
0:02:45.2]} 14. c5 {[%clk 0:02:14.6]} 14... dxc5 {[%clk 0:02:39.3]} 15. bxc5
{[%clk 0:02:14.5]} 15... f6 {[%clk 0:02:30.5]} 16. Qc3 {[%clk 0:01:59.3]} 16...
Rad8 {[%clk 0:02:15.6]} 17. cxb6 {[%clk 0:01:53.6]} 17... cxb6 {[%clk
0:02:17.5]} 18. Bxe5 {[%clk 0:01:47.8]} 18... Qxe5 {[%clk 0:01:25.7]} 19. Qxe5
{[%clk 0:01:46.1]} 19... fxe5 {[%clk 0:01:27.6]} 20. Rc7 {[%clk 0:01:47.6]}
20... Rf7 {[%clk 0:01:29.1]} 21. Bc4 {[%clk 0:01:33.7]} 21... Bd5 {[%clk
0:01:30]} 22. Bxd5 {[%clk 0:00:51.1]} 22... Rxd5 {[%clk 0:01:30.3]} 23. Rc8+
{[%clk 0:00:52.5]} 23... Rf8 {[%clk 0:01:31.4]} 24. Rc7 {[%clk 0:00:53.6]} 24...
Rf7 {[%clk 0:01:32.5]} 25. Rc8+ {[%clk 0:00:48.8]} 25... Rf8 {[%clk 0:01:33.8]}
26. Rc7 {[%clk 0:00:39]} 26... Ra5 {[%clk 0:00:58.3]} 27. Rc2 {[%clk 0:00:31.1]}
27... Rd8 {[%clk 0:00:55.7]} 28. Rfc1 {[%clk 0:00:30.1]} 28... Rd7 {[%clk
0:00:52.5]} 29. g4 {[%clk 0:00:20.7]} 29... Kf7 {[%clk 0:00:53.7]} 30. Kg2
{[%clk 0:00:18]} 30... Ke6 {[%clk 0:00:54.3]} 31. Kg3 {[%clk 0:00:19.4]} 31...
Ra4 {[%clk 0:00:44.2]} 32. h3 {[%clk 0:00:18.4]} 32... Rd6 {[%clk 0:00:40.5]}
33. Rb2 {[%clk 0:00:16.4]} 33... h6 {[%clk 0:00:28.4]} 34. Rc7 {[%clk 0:00:16]}
34... Rd7 {[%clk 0:00:30]} 35. Rc6+ {[%clk 0:00:16.9]} 35... Rd6 {[%clk
0:00:31.1]} 36. Rc7 {[%clk 0:00:18.2]} 36... Rd7 {[%clk 0:00:32.6]} 37. Rc8
{[%clk 0:00:19.7]} 37... Kf6 {[%clk 0:00:22.3]} 38. Rbc2 {[%clk 0:00:19.2]}
38... Ke6 {[%clk 0:00:21.5]} 39. R8c6+ {[%clk 0:00:11]} 39... Rd6 {[%clk
0:00:22.5]} 40. Rc7 {[%clk 0:00:11.7]} 40... Rd7 {[%clk 0:00:24]} 41. Rc8 {[%clk
0:00:12.4]} 41... Ke7 {[%clk 0:00:20.5]} 42. Rg8 {[%clk 0:00:12.9]} 42... Kf6
{[%clk 0:00:21.9]} 43. Rf8+ {[%clk 0:00:12.4]} 43... Ke6 {[%clk 0:00:19.9]} 44.
Re8+ {[%clk 0:00:13.5]} 44... Re7 {[%clk 0:00:18.3]} 45. Rec8 {[%clk 0:00:11.6]}
45... Rd7 {[%clk 0:00:19.1]} 46. Kf3 {[%clk 0:00:10.5]} 46... Ra5 {[%clk
0:00:17.1]} 47. Kg2 {[%clk 0:00:10.8]} 47... Ra4 {[%clk 0:00:16.8]} 48. Kg3
{[%clk 0:00:11.7]} 48... Kf6 {[%clk 0:00:14.7]} 49. Re2 {[%clk 0:00:11.2]} 49...
Re7 {[%clk 0:00:11]} 50. h4 {[%clk 0:00:11.6]} 50... Rd7 {[%clk 0:00:08.7]} 51.
f3 {[%clk 0:00:11.3]} 51... Ke6 {[%clk 0:00:08.6]} 52. Rec2 {[%clk 0:00:11.9]}
52... Rd1 {[%clk 0:00:06.2]} 53. R8c7 {[%clk 0:00:11.3]} 53... Rd7 {[%clk
0:00:07.1]} 54. R7c6+ {[%clk 0:00:11.8]} 54... Rd6 {[%clk 0:00:08.4]} 55. Rc7
{[%clk 0:00:13.1]} 55... Rd7 {[%clk 0:00:09.9]} 56. Rc8 {[%clk 0:00:14.8]} 56...
Ra3 {[%clk 0:00:07.9]} 57. Kf2 {[%clk 0:00:13.4]} 57... Rad3 {[%clk 0:00:07.6]}
58. Ke2 {[%clk 0:00:13.9]} 58... Ra3 {[%clk 0:00:07.9]} 59. Re8+ {[%clk
0:00:14.9]} 59... Re7 {[%clk 0:00:08.3]} 60. Rd8 {[%clk 0:00:14.5]} 60... Rd7
{[%clk 0:00:08.7]} 61. Re8+ {[%clk 0:00:15.1]} 61... Re7 {[%clk 0:00:09.5]} 62.
Rg8 {[%clk 0:00:15.8]} 62... Rd7 {[%clk 0:00:08.6]} 63. Re8+ {[%clk 0:00:13.9]}
1/2-1/2